Workbook

Sheet Start
AH1: 0 | AI1: Start
H2: Themenbezogene Excel-Tools | AH2: =AH1+1 -> 1 | AI2: 01_Kreislaufmodell_1
AH3: =AH2+1 -> 2 | AI3: 02_Kreislaufmodell_2
N4: Zu dieser Datei:
N6: Das Thema „Abschreibungen“, speziell bei Gütern des Anlagevermögens, hat in
N7: der Betriebswirtschaft von Unternehmen eine fundamentale Bedeutung.
N8: Einzelheiten zu Abschreibungen können der hier angegebenen PDF-Datei ent-
N9: nommen werden.
N13: Diese Excel-Datei enthält Übungs-Beispiele zur linearen und zur geometrisch-
N14: degressiven Abschreibung.
N15: Die entsprechenden Musterlösungen können eingeblendet werden.
N17: Als Erstes sind die Anschaffungskosten ("AK") für ein Beispiel-Anöagegut
N18: zu ermitteln.

Sheet AK_Daten
C3: 1. Ermittlung von Anschaffungskosten
C5: 1.1 Sachverhalt
C7: Die Fa. PCX GmbH hat am | F7: 2022-03-10 | G7: im „Bundling“ eine neue EDV-Anlage (inkl. Systemsoftware) sowie ein
C8: Klimagerät für den betreffenden Arbeitsraum gekauft.
C9: Aus den Unterlagen der Beschaffung der Geräte können wir folgende Angaben entnehmen:
K10: Netto | L10: USt 19% | M10: Brutto
D11: Listenpreis der EDVA [EUR] | K11: 20000 | L11: =AK_N1*19/100 -> 3800 | M11: =AK_N1+L11 -> 23800
D12: Lieferer-Rabatt [%] | J12: 5
D13: Lieferer-Skonto (bei Zahlung innerhalb von 10 Tagen) [%] | J13: 3
D14: Transport- und Versicherungskosten durch eine Fremdfirma [EUR] | K14: 400 | L14: =TP_N1*10/100 -> 40 | M14: =TP_N1+L14 -> 440
D15: Aufwendungen für Installation, Test durch eine Service-Firma [EUR] | K15: 500 | L15: =InstK_N1*19/100 -> 95 | M15: =InstK_N1+L15 -> 595
D17: Kaufpreis für das Klimagerät [EUR], (kein Rabatt, nur Skonto!) | K17: 4000 | L17: =Klima_N*19/100 -> 760 | M17: =Klima_N+USt_4 -> 4760
D19: Beschaffungsgemeinkosten | K19: 240
D21: Nutzungsdauer der EDVA [Jahre] | J21: 7
D22: Nutzungsdauer des Klimagerätes [Jahre] | J22: 11 | L22: Änderungsmöglichkeit
D24: Die Rechnung für die EDVA und das Klimagerät wurde vom Unternehmen nachfolgend innerhalb der Skontofrist
D25: per Banküberweisung bezahlt. Die Rechnungen für die Nebenkosten wurden unmittelbar mit Bankscheck bezahlt.
C27: 1.2 Aufgaben
D29: Es sind zunächst die Anschaffungskosten der Anlagegüter zu ermitteln!

Sheet AK_Ermittlung_A
C3: 1. Ermittlung von Anschaffungskosten
C5: 1.3 Berechnungen
D7: Anschaffungskosten der EDVA
D8: Anschaffungskosten sind "die Aufwendungen, die geleistet werden, um einen Vermögensgegenstand zu erwerben
D9: und in einen betriebsbereiten Zustand zu versetzen, soweit sie einzeln zugeordnet werden können.
D10: Zu den Anschaffungskosten gehören auch die Nebenkosten sowie die nachträglichen Anschaffungskosten.
D11: Anschaffungspreisminderungen sind abzusetzen." (siehe § 255 HGB).
D13: Nr. | E13: Position | F13: Prozent | G13: Betrag [EUR]
D14: 1 | E14: Listenpreis (netto) | G14: =AK_N1 -> 20000
D15: =D14+1 -> 2 | F15: =Rabatt -> 5
D16: =D15+1 -> 3 | E16: Zieleinkaufspreis
D17: 4 | F17: 3
D18: 5 | E18: Bareinkaufspreis
D19: 6 | E19: zuzügl. …
D20: 7 | E20: zuzügl. …
D21: 8 | E21: Anschaffungskosten A0
D22: 9 | E22: Angenommener Restwert Rn am Ende der Nutzungsdauer | G22: 2500
D25: Anschaffungskosten des Klimagerätes
D27: Nr. | E27: Position | F27: Prozent | G27: Betrag [EUR]
D28: 1 | E28: Listenpreis (netto) | G28: =Klima_N -> 4000
D29: =D28+1 -> 2 | E29: abzügl. Skonto | F29: 3
D30: =D29+1 -> 3 | E30: Anschaffungskosten A0
D31: 5 | E31: Angenommener Restwert Rn am Ende der Nutzungsdauer | G31: 500
D33: Im Weiteren sind die Abschreibungsaufgaben nur für das Anlagegut "EDVA" zu bearbeiten.

Sheet AK_Ermittlung_L (hidden)
C3: 1. Ermittlung von Anschaffungskosten
C5: 1.3 Berechnungen
D7: Anschaffungskosten der EDVA
D8: Anschaffungskosten sind "die Aufwendungen, die geleistet werden, um einen Vermögensgegenstand zu erwerben
D9: und in einen betriebsbereiten Zustand zu versetzen, soweit sie einzeln zugeordnet werden können.
D10: Zu den Anschaffungskosten gehören auch die Nebenkosten sowie die nachträglichen Anschaffungskosten.
D11: Anschaffungspreisminderungen sind abzusetzen." (siehe § 255 HGB). | H11: Änderungen
D13: Nr. | E13: Position | F13: Prozent | G13: Betrag [EUR]
D14: 1 | E14: Listenpreis (netto) | G14: =AK_N1 -> 20000
D15: =D14+1 -> 2 | E15: abzügl.Rabatt | F15: =Rabatt -> 5 | G15: =G14*F15/100 -> 1000
D16: =D15+1 -> 3 | E16: Zieleinkaufspreis | G16: =G14-G15 -> 19000
D17: 4 | E17: abzügl. Skonto | F17: 3 | G17: =G16*F17/100 -> 570
D18: 5 | E18: Bareinkaufspreis | G18: =G16-G17 -> 18430
D19: 6 | E19: zuzügl. Transport- und Versicherungskosten | G19: 300
D20: 7 | E20: zuzügl. der Kosten für Installation und Test | G20: 500
D21: 8 | E21: Anschaffungskosten A0 | G21: =G18+G19+G20 -> 19230
D22: =D21+1 -> 9 | E22: Angenommener Restwert Rn am Ende der Nutzungsdauer | G22: 2500
D24: Anmerkungen:
D25: Da Beschaffungsgemeinkosten einem Anlagegut nicht direkt zugerechnet werden können, sind sie in
D26: dieser Ermittlung nicht zu berücksichtigen!
D27: Das Klimagerät ist ein selbständig nutzbarer Vermögensgegenstand. Daher sind die Anschaffungs-
D28: für dieses Gerät gesondert zu ermitteln.
D30: Anschaffungskosten des Klimagerätes
D32: Nr. | E32: Position | F32: Prozent | G32: Betrag [EUR]
D33: 1 | E33: Listenpreis (netto) | G33: =Klima_N -> 4000
D34: =D33+1 -> 2 | E34: abzügl. Skonto | F34: 3 | G34: =G33*F34/100 -> 120
D35: =D34+1 -> 3 | E35: Anschaffungskosten A0 | G35: =G33-G34 -> 3880
D36: 5 | E36: Angenommener Restwert Rn am Ende der Nutzungsdauer | G36: 500
D38: Im Weiteren sind die Abschreibungsaufgaben nur für das Anlagegut "EDVA" zu bearbeiten.

Sheet Lin_Abschreib_A
C3: 2. Lineare Abschreibung
C5: 2.1 Formeln
D7: a) Jährlicher Abschreibungsbetrag Q [EUR/a]
I9: A0 Anschaffungskosten [EUR]
I10: Rn Restwert am Ende der Nutzungsdauer [EUR]
I11: mit Rn = 0 oder Rn > 0
I12: n Nutzungsdauer [a]
D14: b) Abschreibungsprozentsatz p [% p.a.] | I14: c) Abschreibungssatz i [-/a]
I16: i = p/100
D20: d) Restwert Rk am Ende des k-ten Jahres [EUR]
F22: k = 1, 2, … , n
D25: e) Monatsgenauer Abschreibungsbetrag Q1m im Anschaffungsjahr [EUR/a]
I27: m Anschaffungsmonat (m = 1, 2, …, 12)
I28: Q1 Abschreibungsbetrag im 1. Jahr [EUR/a]
C30: 2.2 Berechnungsdaten für die EDVA
D31: a) Jährlicher Abschreibungsbetrag Q
E32: bei Rn = 0: | F32: Q = | H32: [EUR/a] | I32: bei Rn > 0 | J32: Q = | L32: [EUR/a]
D33: b) Abschreibungsprozentsatz p
E34: bei Rn = 0: | F34: p = | H34: [% p. a.] | I34: bei Rn > 0 | J34: p = | L34: [% p.a.]
D36: c) Monatsgenauer Abschreibungsbetrag Q1m | I36: Monat m= | J36: =MONTH(Datum_m) -> 3
E38: bei Rn = 0: | F38: Q1m = | H38: [EUR/a] | I38: bei Rn > 0 | J38: Q1m = | L38: [EUR/a]
D40: d) Restwert am Ende von Jahr | G40: k = | H40: 4
E41: bei Rn = 0: | F41: Rk = | H41: [EUR] | I41: bei Rn > 0 | J41: Rk = | L41: [EUR]

Sheet Lin_Abschreib_L (hidden)
C3: 2. Lineare Abschreibung
C5: 2.1 Formeln
D7: a) Jährlicher Abschreibungsbetrag Q [EUR/a]
I9: A0 Anschaffungskosten [EUR]
I10: Rn Restwert am Ende der Nutzungsdauer [EUR]
I11: mit Rn = 0 oder Rn > 0
I12: n Nutzungsdauer [a]
D14: b) Abschreibungsprozentsatz p [% p.a.] | I14: c) Abschreibungssatz i [-/a]
I16: i = p/100
D20: d) Restwert Rk am Ende des k-ten Jahres [EUR]
F22: k = 1, 2, … , n
D25: e) Monatsgenauer Abschreibungsbetrag Q1m im Anschaffungsjahr [EUR/a]
I27: m Anschaffungsmonat (m = 1, 2, …, 12)
I28: Q1 Abschreibungsbetrag im 1. Jahr [EUR/a]
C30: 2.2 Berechnungsdaten für die EDVA
D31: a) Jährlicher Abschreibungsbetrag Q
E32: bei Rn = 0: | F32: Q = | G32: =A0/n_1 -> 2747.142857 | H32: [EUR/a] | I32: bei Rn > 0 | J32: Q = | K32: =(A0-Rn)/n_1 -> 2390 | L32: [EUR/a]
D33: b) Abschreibungsprozentsatz p
E34: bei Rn = 0: | F34: p = | G34: =100/n_1 -> 14.28571429 | H34: [% p. a.] | I34: bei Rn > 0 | J34: p = | K34: =100/n_1-(Rn*100)/(A0*n_1) -> 12.42849714 | L34: [% p.a.]
D36: c) Monatsgenauer Abschreibungsbetrag Q1m | I36: Monat m= | J36: =MONTH(Datum_m) -> 3
E38: bei Rn = 0: | F38: Q1m = | G38: =G32*(13-m)/12 -> 2289.285714 | H38: [EUR/a] | I38: bei Rn > 0 | J38: Q1m = | K38: =K32*(13-m)/12 -> 1991.666667 | L38: [EUR/a]
D40: d) Restwert am Ende von Jahr | G40: k = | H40: 4
E41: bei Rn = 0: | F41: Rk = | G41: =A0-(A0/n_1)*k -> 8241.428571 | H41: [EUR] | I41: bei Rn > 0 | J41: Rk = | K41: =A0-((A0-Rn)*k)/n_1 -> 9670 | L41: [EUR]

Sheet Lin_Abschr_Dia_A
C3: 2. Lineare Abschreibung
C5: 2.3 Abschreibungsplan (Tabelle)
D8: A0_EDVA = | E8: 19230 | F8: ND_EDVA = | H8: =n_1 -> 7 | I8: Rn_EDVA = | J8: =Rn -> 2500
C9: a) Bei Rn = 0 | H9: b) Bei Rn > 0
C10: Jahr | D10: Buchwert Anfang [EUR] | E10: Abschr.-betrag [EUR/a] | F10: Buchwert (1) Ende [EUR] | H10: Jahr | I10: Buchwert Anfang [EUR] | J10: Abschr.-betrag [EUR/a] | K10: Buchwert (2) Ende [EUR]
C12: 0 | F12: =$E$8 -> 19230 | H12: 0 | K12: =$E$8 -> 19230
C13: =C12+1 -> 1 | H13: =H12+1 -> 1
C14: =C13+1 -> 2 | H14: =H13+1 -> 2
C15: 3 | H15: 3
C16: 4 | H16: 4
C17: 5 | H17: 5
C18: 6 | H18: 6
C19: 7 | H19: 7
C20: 8 | H20: 8
C21: 9 | H21: 9
C22: 10 | H22: 10
C24: 2.3 Abschreibungsplan (Diagramm)

Sheet Lin_Abschr_Dia_L (hidden)
C3: 2. Lineare Abschreibung
C5: 2.3 Abschreibungsplan (Tabelle)
C7: Die Daten können über "Drehfelder zu Demo-Zwecken variiert werden!
D8: A0_EDVA = | E8: 19230 | F8: ND_EDVA = | H8: =n_1 -> 7 | I8: Rn_EDVA = | J8: =Rn -> 2500
C9: a) Bei Rn = 0 | H9: b) Bei Rn > 0
C10: Jahr | D10: Buchwert Anfang [EUR] | E10: Abschr.-betrag [EUR/a] | F10: Buchwert (1) Ende [EUR] | H10: Jahr | I10: Buchwert Anfang [EUR] | J10: Abschr.-betrag [EUR/a] | K10: Buchwert (2) Ende [EUR]
C12: 0 | F12: =$E$8 -> 19230 | H12: 0 | K12: =$E$8 -> 19230
C13: =C12+1 -> 1 | D13: =F12 -> 19230 | E13: =IF(C13=1,Q1m_0,"") -> 2289.285714 | F13: =D13-E13 -> 16940.71429 | H13: =H12+1 -> 1 | I13: =IF(H13<=H8,K12,"") -> 19230 | J13: =Q1m_Rn -> 1991.666667 | K13: =IF(H13<=H8,I13-J13,"") -> 17238.33333
C14: =C13+1 -> 2 | D14: =IF(C14<=n_1,F13,"") -> 16940.71429 | E14: =IF(C14<=n_1,Q1_0,"") -> 2747.142857 | F14: =IF(C14<=n_1,D14-E14,"") -> 14193.57143 | H14: =H13+1 -> 2 | I14: =IF(H14<=$H$8,K13,"") -> 17238.33333 | J14: =IF(H14<=$H$8,Q1_Rn,"") -> 2390 | K14: =IF(H14<=$H$8,I14-J14,"") -> 14848.33333
C15: 3 | D15: 14193.57143 | E15: =IF(C15<=n_1,E14,"") -> 2747.142857 | F15: 11446.42857 | H15: 3 | I15: =IF(H15<=$H$8,K14,"") -> 14848.33333 | J15: 2390 | K15: =IF(H15<=$H$8,I15-J15,"") -> 12458.33333
C16: 4 | D16: 11446.42857 | E16: 2747.142857 | F16: 8699.285714 | H16: 4 | I16: 12458.33333 | J16: 2390 | K16: 10068.33333
C17: 5 | D17: 8699.285714 | E17: 2747.142857 | F17: 5952.142857 | H17: 5 | I17: 10068.33333 | J17: 2390 | K17: 7678.333333
C18: 6 | D18: 5952.142857 | E18: 2747.142857 | F18: 3205 | H18: 6 | I18: 7678.333333 | J18: 2390 | K18: 5288.333333
C19: 7 | D19: 3205 | E19: 2747.142857 | F19: 457.8571429 | H19: 7 | I19: 5288.333333 | J19: 2390 | K19: 2898.333333
C20: 8 | H20: 8
C21: 9 | H21: 9
C22: =C21+1 -> 10 | H22: 10
C24: 2.3 Abschreibungsplan (Diagramm)

Sheet Deg_Abschr_A
C3: 3. Geometrisch-degressive Abschreibung
C5: 3.1 Formeln
D7: a) Abschreibungsprozentsatz p [% p.a.]
I9: A0 Anschaffungskosten [EUR]
I10: Rn Restwert am Ende der Nutzungsdauer [EUR]
I11: mit Rn > 0
I12: n Nutzungsdauer [a]
D14: b) Abschreibungsbetrag Qk [EUR/a], Jahr k (k = 1, 2, …, n)
I15: c) Abschreibungssatz i [-/a]
I16: i = p/100
D19: d) Restwert Rk am Ende des k-ten Jahres [EUR]
G22: k = 1, 2, … , n
C26: 3.2 Berechnungsdaten für die EDVA
D27: a) Abschreibungsprozentsatz p | H27: b) Abschreibungssatz i
E28: p = | G28: [% p. a.] | H28: i = | J28: [-/a]
D30: c) Abschreibungsbetrag im Jahr k
G31: k = | H31: 4
E32: Qk = | G32: [EUR/a]
D33: d) Restwert am Ende von Jahr k
F34: Rk = | H34: [EUR]

Sheet Deg_Abschr_L (hidden)
C3: 3. Geometrisch-degressive Abschreibung
C5: 3.1 Formeln
D7: a) Abschreibungsprozentsatz p [% p.a.]
I9: A0 Anschaffungskosten [EUR]
I10: Rn Restwert am Ende der Nutzungsdauer [EUR]
I11: mit Rn > 0
I12: n Nutzungsdauer [a]
D14: b) Abschreibungsbetrag Qk [EUR/a], Jahr k (k = 1, 2, …, n)
I15: c) Abschreibungssatz i [-/a]
I16: i = p/100
D19: d) Restwert Rk am Ende des k-ten Jahres [EUR]
G22: k = 1, 2, … , n
C26: 3.2 Berechnungsdaten für die EDVA
D27: a) Abschreibungsprozentsatz p | H27: b) Abschreibungssatz i
E28: p = | F28: =100*(1-(Rn/A0)^(1/n_1)) -> 25.28239189 | G28: [% p. a.] | H28: i = | I28: =pd/100 -> 0.2528239189 | J28: [-/a]
D30: c) Abschreibungsbetrag im Jahr k
G31: k = | H31: 4
E32: Qk = | F32: =A0*(1-id)^(kn-1)*id -> 2027.992409 | G32: [EUR/a]
D33: d) Restwert am Ende von Jahr k
F34: Rk = | G34: =A0*(1-id)^kn -> 5993.370512 | H34: [EUR]

Sheet Deg_Abschr_Dia_A
C3: 3. Geometrisch-degressive Abschreibung
C5: 3.3 Abschreibungsplan (Tabelle)
C7: Die Daten können über "Drehfelder zu Demo-Zwecken variiert werden!
D8: A0_EDVA = | E8: 19230 | F8: ND_EDVA = | H8: =n_1 -> 7 | I8: Rn_EDVA = | J8: =Rn -> 2500
D10: i = | E10: =id -> 0.2528239189 | F10: [-/a]
C12: Jahr | D12: Buchwert Anfang [EUR] | E12: Abschr.-betrag [EUR/a] | F12: Buchwert (1) Ende [EUR]
C14: 0 | F14: =$E$8 -> 19230
C15: =C14+1 -> 1 | D15: =F14 -> 19230 | E15: 100
C16: =C15+1 -> 2
C17: 3
C18: 4
C19: 5
C20: 6
C21: 7
C22: 8
C23: 9
C24: 10
C26: 3.3 Abschreibungsplan (Diagramm)

Sheet Deg_Abschr_Dia_L (hidden)
C3: 3. Geometrisch-degressive Abschreibung
C5: 3.3 Abschreibungsplan (Tabelle)
C7: Die Daten können über "Drehfelder zu Demo-Zwecken variiert werden!
D8: A0_EDVA = | E8: 19230 | F8: ND_EDVA = | H8: =n_1 -> 7 | I8: Rn_EDVA = | J8: =Rn -> 2500
D10: i = | E10: =id -> 0.2528239189 | F10: [-/a]
C12: Jahr | D12: Buchwert Anfang [EUR] | E12: Abschr.-betrag [EUR/a] | F12: Buchwert (1) Ende [EUR]
C14: 0 | F14: =$E$8 -> 19230
C15: =C14+1 -> 1 | D15: =F14 -> 19230 | E15: =$E$8*(1-id)^(C15-1)*id -> 4861.803961 | F15: =D15-E15 -> 14368.19604
C16: =C15+1 -> 2 | D16: =IF(C16<=n_1,F15,"") -> 14368.19604 | E16: =IF(C16<=n_1,$E$8*(1-id)^(C16-1)*id,"") -> 3632.62363 | F16: =IF(C16<=n_1,D16-E16,"") -> 10735.57241
C17: 3 | D17: =IF(C17<=n_1,F16,"") -> 10735.57241 | E17: 2714.209488 | F17: =IF(C17<=n_1,D17-E17,"") -> 8021.362921
C18: 4 | D18: 8021.362921 | E18: 2027.992409 | F18: 5993.370512
C19: 5 | D19: 5993.370512 | E19: 1515.26742 | F19: 4478.103092
C20: 6 | D20: 4478.103092 | E20: 1132.171573 | F20: 3345.931519
C21: 7 | D21: 3345.931519 | E21: 845.931519 | F21: 2500
C22: 8
C23: 9
C24: 10
C26: 3.3 Abschreibungsplan (Diagramm)

Sheet Blanko1 (hidden)
